[Event "Late-Titled-Tuesday-Blitz-February-27-2024"]
[Site "Chess.com"]
[Date "2024.02.27"]
[Round "5"]
[White "NCchamp"]
[Black "ErikRonka"]
[Result "1-0"]
[WhiteElo "2351"]
[BlackElo "2520"]
[TimeControl "180+1"]
[EndTime "14:56:17 PST"]
[Termination "NCchamp won by checkmate"]

1. d4 {[%clk 0:02:59.9]} 1... e6 {[%clk 0:02:58.6]} 2. e4 {[%clk 0:02:56.6]}
2... d5 {[%clk 0:02:47.8]} 3. exd5 {[%clk 0:02:57.5]} 3... exd5 {[%clk
0:02:46.3]} 4. Nf3 {[%clk 0:02:55.4]} 4... Nc6 {[%clk 0:02:38]} 5. Bb5 {[%clk
0:02:51.3]} 5... Ne7 {[%clk 0:02:34.7]} 6. Bf4 {[%clk 0:02:45.5]} 6... Bg4
{[%clk 0:02:33.6]} 7. Nbd2 {[%clk 0:02:42.7]} 7... Qd7 {[%clk 0:02:33]} 8. c3
{[%clk 0:02:36.7]} 8... f6 {[%clk 0:02:31]} 9. h3 {[%clk 0:02:24.7]} 9... Bh5
{[%clk 0:02:26.5]} 10. Qa4 {[%clk 0:01:58.7]} 10... Nc8 {[%clk 0:02:15.7]} 11.
O-O {[%clk 0:01:43.2]} 11... Bd6 {[%clk 0:02:15.5]} 12. Rfe1+ {[%clk 0:01:34]}
12... N8e7 {[%clk 0:02:05.6]} 13. Bxd6 {[%clk 0:01:29]} 13... Qxd6 {[%clk
0:02:05.7]} 14. Be2 {[%clk 0:01:03.8]} 14... Bf7 {[%clk 0:01:58.5]} 15. Bd3
{[%clk 0:01:02.5]} 15... g5 {[%clk 0:01:53.1]} 16. Bf5 {[%clk 0:00:55]} 16... h5
{[%clk 0:01:51.8]} 17. b4 {[%clk 0:00:50.1]} 17... Kf8 {[%clk 0:01:50.8]} 18.
Qc2 {[%clk 0:00:49.4]} 18... Rg8 {[%clk 0:01:48.5]} 19. b5 {[%clk 0:00:46]}
19... Nd8 {[%clk 0:01:47]} 20. c4 {[%clk 0:00:37.5]} 20... g4 {[%clk 0:01:44.6]}
21. Nh4 {[%clk 0:00:31.5]} 21... Qf4 {[%clk 0:01:42.5]} 22. g3 {[%clk
0:00:26.1]} 22... Qxd4 {[%clk 0:01:34.8]} 23. hxg4 {[%clk 0:00:18.6]} 23... hxg4
{[%clk 0:01:34.2]} 24. cxd5 {[%clk 0:00:13.3]} 24... Bxd5 {[%clk 0:01:28.1]} 25.
Ne4 {[%clk 0:00:13.6]} 25... Rh8 {[%clk 0:01:17.2]} 26. Bxg4 {[%clk 0:00:10.8]}
26... Nf7 {[%clk 0:01:10.3]} 27. Rad1 {[%clk 0:00:09.2]} 27... Qe5 {[%clk
0:01:08.9]} 28. Nc3 {[%clk 0:00:06.4]} 28... Qg5 {[%clk 0:00:56]} 29. Nxd5
{[%clk 0:00:05.7]} 29... Nxd5 {[%clk 0:00:56.9]} 30. Ng6+ {[%clk 0:00:05.9]}
30... Kg7 {[%clk 0:00:54.8]} 31. Nxh8 {[%clk 0:00:06.8]} 31... Rxh8 {[%clk
0:00:54.8]} 32. Qf5 {[%clk 0:00:06.7]} 32... Qh6 {[%clk 0:00:52.2]} 33. Bf3
{[%clk 0:00:05.5]} 33... Nc3 {[%clk 0:00:52.1]} 34. Rd3 {[%clk 0:00:03.6]} 34...
Qh2+ {[%clk 0:00:51.1]} 35. Kf1 {[%clk 0:00:04.2]} 35... Na4 {[%clk 0:00:46]}
36. Qg4+ {[%clk 0:00:04.5]} 36... Kf8 {[%clk 0:00:45.1]} 37. Qxa4 {[%clk
0:00:03.9]} 37... Ne5 {[%clk 0:00:43.2]} 38. Qb4+ {[%clk 0:00:04.2]} 38... Kg7
{[%clk 0:00:43.1]} 39. Rxe5 {[%clk 0:00:04.4]} 39... fxe5 {[%clk 0:00:43.4]} 40.
Qe7+ {[%clk 0:00:04.2]} 40... Kg6 {[%clk 0:00:43.4]} 41. Qe6+ {[%clk 0:00:04.5]}
41... Kg7 {[%clk 0:00:43.5]} 42. Qxe5+ {[%clk 0:00:04.8]} 42... Kf7 {[%clk
0:00:43.7]} 43. Qf5+ {[%clk 0:00:04.6]} 43... Ke8 {[%clk 0:00:42.9]} 44. Qe6+
{[%clk 0:00:05.1]} 44... Kf8 {[%clk 0:00:42.3]} 45. Rd8+ {[%clk 0:00:06]} 45...
Kg7 {[%clk 0:00:42.5]} 46. Rd7+ {[%clk 0:00:06.9]} 46... Kf8 {[%clk 0:00:42.1]}
47. Qe7+ {[%clk 0:00:07.2]} 47... Kg8 {[%clk 0:00:41.8]} 48. Qd8# {[%clk
0:00:08.1]} 1-0

[Event "Late-Titled-Tuesday-Blitz-February-27-2024"]
[Site "Chess.com"]
[Date "2024.02.27"]
[Round "5"]
[White "PattyCastillo"]
[Black "janhelmer03"]
[Result "1/2-1/2"]
[WhiteElo "1988"]
[BlackElo "2362"]
[TimeControl "180+1"]
[EndTime "14:56:17 PST"]
[Termination "Game drawn by repetition"]

1. d4 {[%clk 0:02:54]} 1... d5 {[%clk 0:02:59.4]} 2. Nf3 {[%clk 0:02:53.7]} 2...
Nf6 {[%clk 0:02:59.3]} 3. e3 {[%clk 0:02:53.6]} 3... c6 {[%clk 0:02:59.1]} 4.
Bd3 {[%clk 0:02:52.5]} 4... Bg4 {[%clk 0:02:58.5]} 5. c4 {[%clk 0:02:51]} 5...
e6 {[%clk 0:02:58.5]} 6. Nbd2 {[%clk 0:02:43.2]} 6... Nbd7 {[%clk 0:02:57]} 7.
O-O {[%clk 0:02:38.9]} 7... Be7 {[%clk 0:02:47.9]} 8. Qc2 {[%clk 0:02:36.6]}
8... O-O {[%clk 0:02:44.3]} 9. b3 {[%clk 0:02:33.7]} 9... Bh5 {[%clk 0:02:38.6]}
10. Bb2 {[%clk 0:02:33.3]} 10... Bg6 {[%clk 0:02:38.8]} 11. Bxg6 {[%clk
0:02:32.4]} 11... hxg6 {[%clk 0:02:39.7]} 12. Ne5 {[%clk 0:02:32.6]} 12... Nxe5
{[%clk 0:02:39.2]} 13. dxe5 {[%clk 0:02:32.3]} 13... Nd7 {[%clk 0:02:39]} 14. f4
{[%clk 0:02:31.9]} 14... Bc5 {[%clk 0:02:25.1]} 15. Rfe1 {[%clk 0:02:24.8]}
15... Bb4 {[%clk 0:02:17.1]} 16. Bc3 {[%clk 0:02:16.5]} 16... Bxc3 {[%clk
0:02:08.8]} 17. Qxc3 {[%clk 0:02:16.4]} 17... g5 {[%clk 0:02:06.8]} 18. Rad1
{[%clk 0:02:14.5]} 18... gxf4 {[%clk 0:02:06.5]} 19. exf4 {[%clk 0:02:14.4]}
19... Qb6+ {[%clk 0:02:04.2]} 20. Kh1 {[%clk 0:02:14.1]} 20... a5 {[%clk
0:01:50.1]} 21. Ne4 {[%clk 0:02:01.9]} 21... a4 {[%clk 0:01:42.7]} 22. Nd6
{[%clk 0:01:58.6]} 22... axb3 {[%clk 0:01:40.3]} 23. axb3 {[%clk 0:01:59]} 23...
Nc5 {[%clk 0:01:37.1]} 24. b4 {[%clk 0:01:52.1]} 24... Na4 {[%clk 0:01:31.2]}
25. Qd2 {[%clk 0:01:39.3]} 25... dxc4 {[%clk 0:01:23.3]} 26. Nxc4 {[%clk
0:01:32.3]} 26... Qa6 {[%clk 0:01:19.2]} 27. Nd6 {[%clk 0:01:29.3]} 27... b6
{[%clk 0:01:14.3]} 28. Qf2 {[%clk 0:01:23.5]} 28... c5 {[%clk 0:01:13.1]} 29.
bxc5 {[%clk 0:01:22.7]} 29... bxc5 {[%clk 0:01:12]} 30. Ra1 {[%clk 0:01:20.4]}
30... Qc6 {[%clk 0:01:09.6]} 31. Rec1 {[%clk 0:01:13.3]} 31... Nb6 {[%clk
0:00:57.1]} 32. Rxa8 {[%clk 0:01:09.4]} 32... Rxa8 {[%clk 0:00:58]} 33. h3
{[%clk 0:01:09.3]} 33... c4 {[%clk 0:00:52.9]} 34. f5 {[%clk 0:00:53.5]} 34...
exf5 {[%clk 0:00:47.5]} 35. Qxf5 {[%clk 0:00:51.7]} 35... Qd5 {[%clk 0:00:38.5]}
36. Rf1 {[%clk 0:00:29.5]} 36... c3 {[%clk 0:00:33.1]} 37. Nxf7 {[%clk
0:00:21.4]} 37... c2 {[%clk 0:00:13.4]} 38. Nh6+ {[%clk 0:00:21]} 38... Kh8
{[%clk 0:00:07.8]} 39. Nf7+ {[%clk 0:00:18.3]} 39... Kg8 {[%clk 0:00:08.2]} 40.
Nh6+ {[%clk 0:00:18.4]} 40... Kh8 {[%clk 0:00:03.8]} 41. Nf7+ {[%clk 0:00:17]}
41... Kg8 {[%clk 0:00:03.1]} 1/2-1/2

[Event "Late-Titled-Tuesday-Blitz-February-27-2024"]
[Site "Chess.com"]
[Date "2024.02.27"]
[Round "5"]
[White "TenisMaster"]
[Black "Alexei_Gubajdullin"]
[Result "0-1"]
[WhiteElo "2928"]
[BlackElo "2667"]
[TimeControl "180+1"]
[EndTime "14:56:20 PST"]
[Termination "Alexei_Gubajdullin won by resignation"]

1. e4 {[%clk 0:02:57.6]} 1... g6 {[%clk 0:02:55.7]} 2. d4 {[%clk 0:02:55.5]}
2... Bg7 {[%clk 0:02:55.6]} 3. Nc3 {[%clk 0:02:56.2]} 3... d6 {[%clk 0:02:55.6]}
4. Be3 {[%clk 0:02:55.8]} 4... a6 {[%clk 0:02:55.6]} 5. h4 {[%clk 0:02:55.5]}
5... h6 {[%clk 0:02:55.2]} 6. f4 {[%clk 0:02:55.3]} 6... h5 {[%clk 0:02:54.1]}
7. Nf3 {[%clk 0:02:55.1]} 7... Nf6 {[%clk 0:02:53.9]} 8. Bd3 {[%clk 0:02:53]}
8... Ng4 {[%clk 0:02:53.3]} 9. Bg1 {[%clk 0:02:52.2]} 9... Nd7 {[%clk
0:02:50.8]} 10. Qd2 {[%clk 0:02:51.7]} 10... c5 {[%clk 0:02:50.5]} 11. O-O-O
{[%clk 0:02:31.7]} 11... cxd4 {[%clk 0:02:48.2]} 12. Nxd4 {[%clk 0:02:24.8]}
12... O-O {[%clk 0:02:13.9]} 13. Kb1 {[%clk 0:02:21.1]} 13... Nc5 {[%clk
0:02:09.5]} 14. Nb3 {[%clk 0:02:06.2]} 14... b6 {[%clk 0:02:02.8]} 15. Bd4
{[%clk 0:02:00.4]} 15... Nxb3 {[%clk 0:02:01.9]} 16. axb3 {[%clk 0:01:51.8]}
16... Bxd4 {[%clk 0:02:01.1]} 17. f5 {[%clk 0:01:49]} 17... Bb7 {[%clk
0:01:43.2]} 18. Be2 {[%clk 0:01:42.5]} 18... Bxc3 {[%clk 0:01:40.4]} 19. bxc3
{[%clk 0:01:42.7]} 19... Ne5 {[%clk 0:01:39.8]} 20. Bxh5 {[%clk 0:01:33.2]}
20... Bxe4 {[%clk 0:01:34.7]} 21. fxg6 {[%clk 0:01:31.8]} 21... fxg6 {[%clk
0:01:33.8]} 22. Rhe1 {[%clk 0:01:31.6]} 22... d5 {[%clk 0:01:24.4]} 23. Qh6
{[%clk 0:01:15.3]} 23... Qe8 {[%clk 0:01:17.8]} 24. Bf3 {[%clk 0:01:10.6]} 24...
Nxf3 {[%clk 0:01:14.7]} 25. gxf3 {[%clk 0:01:10.6]} 25... Rxf3 {[%clk
0:01:14.1]} 26. h5 {[%clk 0:01:02.6]} 26... Qf8 {[%clk 0:01:09.3]} 27. Qg5
{[%clk 0:00:56.3]} 27... Qf5 {[%clk 0:01:00]} 28. Qxe7 {[%clk 0:00:52.2]} 28...
Bxc2+ {[%clk 0:00:58.8]} 29. Ka1 {[%clk 0:00:49.6]} 29... Bxd1 {[%clk
0:00:57.6]} 30. Rg1 {[%clk 0:00:44.9]} 30... Qf7 {[%clk 0:00:29.1]} 31. Rxg6+
{[%clk 0:00:43]} 31... Kh7 {[%clk 0:00:24]} 32. Qg5 {[%clk 0:00:39.6]} 32... Qf8
{[%clk 0:00:23.8]} 33. Re6 {[%clk 0:00:36]} 33... Qa3+ {[%clk 0:00:22.7]} 34.
Kb1 {[%clk 0:00:35.5]} 34... Qxb3+ {[%clk 0:00:21.9]} 35. Kc1 {[%clk 0:00:30.8]}
35... Rxc3+ {[%clk 0:00:19.8]} 36. Kd2 {[%clk 0:00:30.6]} 36... Rc2+ {[%clk
0:00:16.9]} 37. Ke1 {[%clk 0:00:29.5]} 37... Qc3+ {[%clk 0:00:14.4]} 38. Kxd1
{[%clk 0:00:28.4]} 38... Qd3+ {[%clk 0:00:12]} 39. Ke1 {[%clk 0:00:28.8]} 39...
Qc3+ {[%clk 0:00:09.8]} 40. Kd1 {[%clk 0:00:28.7]} 40... Qa1+ {[%clk 0:00:09.9]}
41. Kxc2 {[%clk 0:00:28.1]} 41... Rc8+ {[%clk 0:00:10.8]} 42. Kd2 {[%clk
0:00:26.1]} 42... Qc1+ {[%clk 0:00:10.3]} 43. Kd3 {[%clk 0:00:22.9]} 43... Qxg5
{[%clk 0:00:09.9]} 0-1

[Event "Late-Titled-Tuesday-Blitz-February-27-2024"]
[Site "Chess.com"]
[Date "2024.02.27"]
[Round "5"]
[White "Caisachess"]
[Black "MFatigue"]
[Result "0-1"]
[WhiteElo "2349"]
[BlackElo "2517"]
[TimeControl "180+1"]
[EndTime "14:56:20 PST"]
[Termination "MFatigue won by resignation"]

1. e4 {[%clk 0:03:00.9]} 1... e6 {[%clk 0:03:00]} 2. d4 {[%clk 0:03:00.3]} 2...
d5 {[%clk 0:03:00.5]} 3. Bd3 {[%clk 0:03:00.8]} 3... dxe4 {[%clk 0:03:00.4]} 4.
Bxe4 {[%clk 0:03:01.7]} 4... Nf6 {[%clk 0:03:01]} 5. Bf3 {[%clk 0:03:02.3]} 5...
c5 {[%clk 0:03:01.9]} 6. Ne2 {[%clk 0:03:02.6]} 6... Nc6 {[%clk 0:03:02.5]} 7.
Be3 {[%clk 0:03:02.2]} 7... Nd5 {[%clk 0:03:03]} 8. Bxd5 {[%clk 0:02:59.6]} 8...
Qxd5 {[%clk 0:03:03.9]} 9. Nf4 {[%clk 0:02:57.9]} 9... Qf5 {[%clk 0:02:33.3]}
10. dxc5 {[%clk 0:02:51.8]} 10... Bxc5 {[%clk 0:02:13.9]} 11. Bxc5 {[%clk
0:02:43.4]} 11... Qxc5 {[%clk 0:02:14.8]} 12. Nc3 {[%clk 0:02:24.7]} 12... O-O
{[%clk 0:02:07.3]} 13. O-O {[%clk 0:02:23]} 13... e5 {[%clk 0:02:06.2]} 14. Nh5
{[%clk 0:02:16.3]} 14... Bf5 {[%clk 0:01:55.5]} 15. Ng3 {[%clk 0:02:13.9]} 15...
Bg6 {[%clk 0:01:55.6]} 16. Qe2 {[%clk 0:02:09.1]} 16... Nd4 {[%clk 0:01:53.1]}
17. Qe3 {[%clk 0:02:09.1]} 17... Rac8 {[%clk 0:01:20]} 18. Nge4 {[%clk
0:02:06.9]} 18... Qc6 {[%clk 0:01:20.1]} 19. Rac1 {[%clk 0:02:02.8]} 19... f5
{[%clk 0:01:04.9]} 20. Nd2 {[%clk 0:01:59]} 20... Rce8 {[%clk 0:00:57.8]} 21.
Nb3 {[%clk 0:01:40.5]} 21... Nxb3 {[%clk 0:00:32.7]} 22. axb3 {[%clk 0:01:39.6]}
22... b6 {[%clk 0:00:33.6]} 23. Rcd1 {[%clk 0:01:36.3]} 23... f4 {[%clk
0:00:29.4]} 24. Qd2 {[%clk 0:01:36.4]} 24... Rf7 {[%clk 0:00:16.8]} 25. f3
{[%clk 0:01:36.7]} 25... Rfe7 {[%clk 0:00:15.4]} 26. Rfe1 {[%clk 0:01:34.6]}
26... h6 {[%clk 0:00:15.2]} 27. Ne4 {[%clk 0:01:33.4]} 27... Bxe4 {[%clk
0:00:14.5]} 28. Rxe4 {[%clk 0:01:32.9]} 28... Kf7 {[%clk 0:00:12.2]} 29. c4
{[%clk 0:01:29.6]} 29... Kf6 {[%clk 0:00:12]} 30. Qc3 {[%clk 0:01:26.6]} 30...
Qc5+ {[%clk 0:00:11.5]} 31. Kh1 {[%clk 0:01:25.5]} 31... g5 {[%clk 0:00:11.1]}
32. h3 {[%clk 0:01:25.1]} 32... Re6 {[%clk 0:00:11.3]} 33. Rd5 {[%clk
0:01:24.8]} 33... Qf2 {[%clk 0:00:10.5]} 34. Rdxe5 {[%clk 0:01:23]} 34... Rxe5
{[%clk 0:00:10.6]} 35. b4 {[%clk 0:01:16.6]} 35... Kf5 {[%clk 0:00:06.1]} 36.
Qd3 {[%clk 0:01:10.6]} 36... Rxe4 {[%clk 0:00:04.9]} 37. Qd7+ {[%clk 0:01:10]}
37... Kg6 {[%clk 0:00:03.9]} 38. fxe4 {[%clk 0:01:08.7]} 38... Qe1+ {[%clk
0:00:03.3]} 39. Kh2 {[%clk 0:01:08]} 39... Qxe4 {[%clk 0:00:04.2]} 40. Qd6+
{[%clk 0:01:06.9]} 40... Qe6 {[%clk 0:00:04.8]} 41. Qd3+ {[%clk 0:01:06.8]}
41... Qf5 {[%clk 0:00:05.4]} 42. Qd6+ {[%clk 0:01:06.1]} 42... Re6 {[%clk
0:00:06]} 43. Qd7 {[%clk 0:01:04]} 43... Qe5 {[%clk 0:00:05.8]} 44. Qd8 {[%clk
0:01:02.9]} 44... f3+ {[%clk 0:00:05.9]} 45. Kg1 {[%clk 0:01:00.6]} 45... Qe1+
{[%clk 0:00:06.3]} 46. Kh2 {[%clk 0:01:00.9]} 46... Qe5+ {[%clk 0:00:05.2]} 47.
Kg1 {[%clk 0:00:58.9]} 47... f2+ {[%clk 0:00:05.7]} 48. Kxf2 {[%clk 0:00:59.1]}
48... Qf4+ {[%clk 0:00:06.2]} 0-1

[Event "Late-Titled-Tuesday-Blitz-February-27-2024"]
[Site "Chess.com"]
[Date "2024.02.27"]
[Round "5"]
[White "jcmesafischer"]
[Black "Orion2127989"]
[Result "1-0"]
[WhiteElo "2369"]
[BlackElo "2140"]
[TimeControl "180+1"]
[EndTime "14:56:20 PST"]
[Termination "jcmesafischer won on time"]

1. e4 {[%clk 0:02:49]} 1... c6 {[%clk 0:02:58.5]} 2. Nc3 {[%clk 0:02:40.4]} 2...
d5 {[%clk 0:02:58.4]} 3. Nf3 {[%clk 0:02:41.3]} 3... Bg4 {[%clk 0:02:57.6]} 4.
h3 {[%clk 0:02:41.4]} 4... Bxf3 {[%clk 0:02:57.3]} 5. Qxf3 {[%clk 0:02:42.3]}
5... Nf6 {[%clk 0:02:56.1]} 6. d3 {[%clk 0:02:41]} 6... e6 {[%clk 0:02:53.2]} 7.
g3 {[%clk 0:02:39.3]} 7... Nbd7 {[%clk 0:02:52.4]} 8. Bg2 {[%clk 0:02:38.3]}
8... Bb4 {[%clk 0:02:51.7]} 9. O-O {[%clk 0:02:35.9]} 9... Bxc3 {[%clk
0:02:49.5]} 10. bxc3 {[%clk 0:02:36.8]} 10... dxe4 {[%clk 0:02:49.3]} 11. dxe4
{[%clk 0:02:37]} 11... e5 {[%clk 0:02:48.6]} 12. Ba3 {[%clk 0:02:31.5]} 12... c5
{[%clk 0:02:44.8]} 13. g4 {[%clk 0:02:23.1]} 13... h6 {[%clk 0:02:44.2]} 14.
Rfd1 {[%clk 0:02:14.7]} 14... Qc7 {[%clk 0:02:43.8]} 15. Bc1 {[%clk 0:02:04.3]}
15... O-O-O {[%clk 0:02:31.1]} 16. a4 {[%clk 0:01:59.7]} 16... Nb6 {[%clk
0:02:03.3]} 17. a5 {[%clk 0:01:51.3]} 17... Nbd7 {[%clk 0:01:46]} 18. Bf1 {[%clk
0:01:32.6]} 18... Nb8 {[%clk 0:01:43.9]} 19. Qf5+ {[%clk 0:01:17.5]} 19... Rd7
{[%clk 0:01:43.3]} 20. Bb5 {[%clk 0:01:14.8]} 20... Nc6 {[%clk 0:01:42.6]} 21.
a6 {[%clk 0:01:13.6]} 21... b6 {[%clk 0:01:27.5]} 22. Rxd7 {[%clk 0:01:03.1]}
22... Nxd7 {[%clk 0:01:06.5]} 23. Qxf7 {[%clk 0:01:02]} 23... Ndb8 {[%clk
0:00:26.3]} 24. Qg6 {[%clk 0:00:31.5]} 24... Rf8 {[%clk 0:00:23.8]} 25. Be3
{[%clk 0:00:29]} 25... Rf6 {[%clk 0:00:19]} 26. Qh5 {[%clk 0:00:13.7]} 26... Qd6
{[%clk 0:00:14.7]} 27. Be2 {[%clk 0:00:09.5]} 27... Nd7 {[%clk 0:00:09.3]} 28.
Qe8+ {[%clk 0:00:05.7]} 28... Kc7 {[%clk 0:00:08.1]} 29. Rd1 {[%clk 0:00:05.9]}
29... Qe6 {[%clk 0:00:04.8]} 30. Qh5 {[%clk 0:00:03.4]} 30... Nb4 {[%clk
0:00:01.6]} 31. cxb4 {[%clk 0:00:02.5]} 1-0

[Event "Late-Titled-Tuesday-Blitz-February-27-2024"]
[Site "Chess.com"]
[Date "2024.02.27"]
[Round "5"]
[White "laskakid"]
[Black "JaackCamel"]
[Result "0-1"]
[WhiteElo "2390"]
[BlackElo "2240"]
[TimeControl "180+1"]
[EndTime "14:56:22 PST"]
[Termination "JaackCamel won on time"]

1. d4 {[%clk 0:03:00.9]} 1... d5 {[%clk 0:02:59.4]} 2. c4 {[%clk 0:03:00.8]}
2... e6 {[%clk 0:02:59]} 3. Nc3 {[%clk 0:03:00.9]} 3... c6 {[%clk 0:02:58.8]} 4.
e4 {[%clk 0:03:00.3]} 4... dxe4 {[%clk 0:02:57.8]} 5. Nxe4 {[%clk 0:03:00.5]}
5... Bb4+ {[%clk 0:02:57.5]} 6. Bd2 {[%clk 0:03:00.4]} 6... Qxd4 {[%clk
0:02:56.8]} 7. Bxb4 {[%clk 0:03:00.4]} 7... Qxe4+ {[%clk 0:02:56.7]} 8. Be2
{[%clk 0:03:00.1]} 8... Na6 {[%clk 0:02:55.8]} 9. Bd6 {[%clk 0:02:59.6]} 9...
Qxg2 {[%clk 0:02:54.5]} 10. Bf3 {[%clk 0:02:57.9]} 10... Qg5 {[%clk 0:02:53.8]}
11. Ne2 {[%clk 0:02:56.5]} 11... Nf6 {[%clk 0:02:27.3]} 12. Rg1 {[%clk
0:02:41.7]} 12... Qa5+ {[%clk 0:02:23.5]} 13. Kf1 {[%clk 0:02:39.1]} 13... Bd7
{[%clk 0:02:00.7]} 14. Rxg7 {[%clk 0:02:31.3]} 14... O-O-O {[%clk 0:01:58.6]}
15. Be7 {[%clk 0:02:20.3]} 15... Nh5 {[%clk 0:01:46.6]} 16. Rg5 {[%clk
0:02:03.5]} 16... c5 {[%clk 0:01:33.4]} 17. Bxd8 {[%clk 0:01:50.9]} 17... Rxd8
{[%clk 0:01:28.7]} 18. Rxh5 {[%clk 0:01:24.8]} 18... e5 {[%clk 0:01:17.5]} 19.
Qb3 {[%clk 0:01:16.5]} 19... Nb4 {[%clk 0:01:12.9]} 20. a3 {[%clk 0:00:54.5]}
20... f5 {[%clk 0:01:10.9]} 21. Rc1 {[%clk 0:00:46.3]} 21... Nc6 {[%clk
0:00:48.7]} 22. Rxh7 {[%clk 0:00:45.6]} 22... e4 {[%clk 0:00:47.7]} 23. Bg2
{[%clk 0:00:43.7]} 23... Nd4 {[%clk 0:00:27.6]} 24. Qc3 {[%clk 0:00:34.2]} 24...
Qb6 {[%clk 0:00:21.9]} 25. Rd1 {[%clk 0:00:33]} 25... Qg6 {[%clk 0:00:19.7]} 26.
Rh3 {[%clk 0:00:29.1]} 26... Nxe2 {[%clk 0:00:17.5]} 27. Kxe2 {[%clk 0:00:25.6]}
27... f4 {[%clk 0:00:16.6]} 28. Bf1 {[%clk 0:00:19.7]} 28... Bg4+ {[%clk
0:00:14.3]} 29. f3 {[%clk 0:00:18.3]} 29... exf3+ {[%clk 0:00:12.3]} 30. Rxf3
{[%clk 0:00:17]} 30... Qe4+ {[%clk 0:00:12.4]} 31. Kf2 {[%clk 0:00:13.7]} 31...
Rxd1 {[%clk 0:00:12.4]} 32. Qh8+ {[%clk 0:00:11]} 32... Rd8 {[%clk 0:00:12.3]}
33. Qc3 {[%clk 0:00:07.1]} 33... Bxf3 {[%clk 0:00:11.3]} 34. Bh3+ {[%clk
0:00:05.1]} 34... Kb8 {[%clk 0:00:10]} 35. Qxf3 {[%clk 0:00:04.3]} 35... Rd2+
{[%clk 0:00:10]} 36. Kg1 {[%clk 0:00:03.3]} 36... Qxf3 {[%clk 0:00:10.1]} 0-1

[Event "Late-Titled-Tuesday-Blitz-February-27-2024"]
[Site "Chess.com"]
[Date "2024.02.27"]
[Round "5"]
[White "Pelusiansky"]
[Black "NateSolon"]
[Result "0-1"]
[WhiteElo "2539"]
[BlackElo "2689"]
[TimeControl "180+1"]
[EndTime "14:56:25 PST"]
[Termination "NateSolon won by resignation"]

1. d4 {[%clk 0:02:55.3]} 1... d5 {[%clk 0:02:59.8]} 2. c4 {[%clk 0:02:55.8]}
2... c6 {[%clk 0:03:00]} 3. Nc3 {[%clk 0:02:56.3]} 3... Nf6 {[%clk 0:03:00.3]}
4. cxd5 {[%clk 0:02:56.2]} 4... cxd5 {[%clk 0:03:00.3]} 5. Bf4 {[%clk
0:02:56.6]} 5... Nc6 {[%clk 0:02:59.1]} 6. e3 {[%clk 0:02:56.9]} 6... e6 {[%clk
0:02:56.8]} 7. Bd3 {[%clk 0:02:56.8]} 7... Be7 {[%clk 0:02:55.5]} 8. h3 {[%clk
0:02:54.3]} 8... Bd7 {[%clk 0:02:54.9]} 9. Nf3 {[%clk 0:02:54.6]} 9... O-O
{[%clk 0:02:54.3]} 10. O-O {[%clk 0:02:54.4]} 10... Qa5 {[%clk 0:02:53.9]} 11.
a3 {[%clk 0:02:34.4]} 11... Rfc8 {[%clk 0:02:53.3]} 12. Rc1 {[%clk 0:02:33.7]}
12... Qd8 {[%clk 0:02:48.6]} 13. Qe2 {[%clk 0:02:27.7]} 13... Be8 {[%clk
0:02:39.8]} 14. Rc2 {[%clk 0:02:27.2]} 14... a6 {[%clk 0:02:31.4]} 15. Rfc1
{[%clk 0:02:25.5]} 15... b5 {[%clk 0:02:26.4]} 16. Nb1 {[%clk 0:02:17.8]} 16...
Na5 {[%clk 0:02:23.4]} 17. Bc7 {[%clk 0:02:17.9]} 17... Rxc7 {[%clk 0:02:16.5]}
18. Rxc7 {[%clk 0:02:18.8]} 18... Nc4 {[%clk 0:02:09.9]} 19. Rc5 {[%clk
0:01:42.9]} 19... Bxc5 {[%clk 0:02:02.1]} 20. dxc5 {[%clk 0:01:43.8]} 20... Rc8
{[%clk 0:01:42.6]} 21. b3 {[%clk 0:01:42.3]} 21... Na5 {[%clk 0:01:42]} 22. Qb2
{[%clk 0:01:39.4]} 22... Nc6 {[%clk 0:01:29.8]} 23. b4 {[%clk 0:01:36.7]} 23...
Qc7 {[%clk 0:01:26.8]} 24. Nbd2 {[%clk 0:01:32.4]} 24... e5 {[%clk 0:01:25.1]}
25. Bf5 {[%clk 0:01:32.2]} 25... Rd8 {[%clk 0:01:24.3]} 26. Bb1 {[%clk
0:01:24.3]} 26... h6 {[%clk 0:01:22]} 27. Nb3 {[%clk 0:01:23.9]} 27... Bd7
{[%clk 0:01:14.6]} 28. Rd1 {[%clk 0:01:22.6]} 28... Be6 {[%clk 0:01:13.8]} 29.
Ba2 {[%clk 0:01:07.5]} 29... Ra8 {[%clk 0:01:07.6]} 30. Rc1 {[%clk 0:00:57]}
30... Nd7 {[%clk 0:00:53.5]} 31. Qd2 {[%clk 0:00:48.3]} 31... Nf6 {[%clk
0:00:51.3]} 32. Bb1 {[%clk 0:00:44.3]} 32... d4 {[%clk 0:00:46.9]} 33. exd4
{[%clk 0:00:43.1]} 33... Bxb3 {[%clk 0:00:46.2]} 34. dxe5 {[%clk 0:00:35.4]}
34... Nxe5 {[%clk 0:00:45.5]} 35. Qf4 {[%clk 0:00:35.4]} 35... Nxf3+ {[%clk
0:00:45.6]} 36. Qxf3 {[%clk 0:00:36.3]} 36... Bd5 {[%clk 0:00:44.7]} 37. Qf5
{[%clk 0:00:35.9]} 37... Re8 {[%clk 0:00:41.4]} 38. Rd1 {[%clk 0:00:35.5]} 38...
Qe5 {[%clk 0:00:38.1]} 39. Qd3 {[%clk 0:00:28.5]} 39... g6 {[%clk 0:00:34.8]}
40. a4 {[%clk 0:00:28.5]} 40... Bc4 {[%clk 0:00:33.2]} 41. Qf3 {[%clk
0:00:24.5]} 41... bxa4 {[%clk 0:00:29.6]} 42. Rd6 {[%clk 0:00:24.6]} 42... Re6
{[%clk 0:00:28.3]} 43. Rd8+ {[%clk 0:00:18.9]} 43... Kg7 {[%clk 0:00:27.3]} 44.
c6 {[%clk 0:00:13.8]} 44... Bd5 {[%clk 0:00:20.6]} 0-1